[Event "*** Titled Tuesday Blitz"]
[Site "Chess.com"]
[Date "2021.04.06"]
[Round "3"]
[White "alexrustemov"]
[Black "Rondo_Capriccioso"]
[Result "1-0"]
[WhiteElo "2664"]
[BlackElo "2479"]
[TimeControl "180+1"]
[EndTime "10:28:53 PDT"]
[Termination "alexrustemov won by resignation"]

1. d4 {[%clk 0:03:00.9]} 1... Nf6 {[%clk 0:02:58.3]} 2. c4 {[%clk 0:03:00.6]}
2... g6 {[%clk 0:02:58.7]} 3. Nf3 {[%clk 0:03:00.8]} 3... Bg7 {[%clk 0:02:59.6]}
4. g3 {[%clk 0:03:01.4]} 4... d6 {[%clk 0:03:00.2]} 5. Bg2 {[%clk 0:03:02]} 5...
O-O {[%clk 0:03:00.8]} 6. Nc3 {[%clk 0:03:02.5]} 6... Nbd7 {[%clk 0:03:00]} 7.
O-O {[%clk 0:03:02.5]} 7... e5 {[%clk 0:03:00.7]} 8. e4 {[%clk 0:03:02.8]} 8...
c6 {[%clk 0:03:00.5]} 9. h3 {[%clk 0:03:02.9]} 9... Qb6 {[%clk 0:03:00.6]} 10.
Re1 {[%clk 0:02:59.4]} 10... Re8 {[%clk 0:02:59.6]} 11. d5 {[%clk 0:02:56.3]}
11... cxd5 {[%clk 0:02:12.8]} 12. cxd5 {[%clk 0:02:57.2]} 12... Nc5 {[%clk
0:01:57.3]} 13. Qe2 {[%clk 0:02:56.6]} 13... Bd7 {[%clk 0:01:56.9]} 14. Be3
{[%clk 0:02:56.1]} 14... Rac8 {[%clk 0:01:54.9]} 15. Rab1 {[%clk 0:02:53.8]}
15... Qb4 {[%clk 0:01:54.6]} 16. Nd2 {[%clk 0:02:37.1]} 16... Na4 {[%clk
0:01:45.8]} 17. Nxa4 {[%clk 0:02:35.1]} 17... Qxa4 {[%clk 0:01:45.1]} 18. a3
{[%clk 0:02:22.4]} 18... Rc2 {[%clk 0:01:30.1]} 19. Qd3 {[%clk 0:02:11.9]} 19...
Bb5 {[%clk 0:01:14.6]} 20. Qb3 {[%clk 0:02:08.9]} 20... Rec8 {[%clk 0:01:07.5]}
21. Qxa4 {[%clk 0:02:01.6]} 21... Bxa4 {[%clk 0:01:05.4]} 22. Bf1 {[%clk
0:02:02.1]} 22... b6 {[%clk 0:00:34.4]} 23. Bd3 {[%clk 0:01:56.5]} 23... R2c7
{[%clk 0:00:33.6]} 24. b3 {[%clk 0:01:54.9]} 24... Bd7 {[%clk 0:00:33.5]} 25.
Ba6 {[%clk 0:01:47.6]} 25... Rd8 {[%clk 0:00:24.5]} 26. g4 {[%clk 0:01:47.3]}
26... Bc8 {[%clk 0:00:23.2]} 27. Be2 {[%clk 0:01:38.6]} 27... Bb7 {[%clk
0:00:21.7]} 28. Rec1 {[%clk 0:01:32.8]} 28... Rdc8 {[%clk 0:00:22.1]} 29. Rxc7
{[%clk 0:01:32.7]} 29... Rxc7 {[%clk 0:00:23]} 30. f3 {[%clk 0:01:20]} 30... Bf8
{[%clk 0:00:17.9]} 31. Kf2 {[%clk 0:01:19.4]} 31... Nd7 {[%clk 0:00:17.9]} 32.
Nc4 {[%clk 0:01:14.5]} 32... Nc5 {[%clk 0:00:16.6]} 33. a4 {[%clk 0:01:10.6]}
33... f6 {[%clk 0:00:15.8]} 34. Ke1 {[%clk 0:00:55.3]} 34... f5 {[%clk
0:00:13.9]} 35. Nd2 {[%clk 0:00:49.1]} 35... fxe4 {[%clk 0:00:10.2]} 36. fxe4
{[%clk 0:00:48.1]} 36... Be7 {[%clk 0:00:10.6]} 37. g5 {[%clk 0:00:47.8]} 37...
h5 {[%clk 0:00:10]} 38. gxh6 {[%clk 0:00:40.7]} 38... Bh4+ {[%clk 0:00:10.9]}
39. Kf1 {[%clk 0:00:38.8]} 39... Bc8 {[%clk 0:00:10.1]} 40. Kg2 {[%clk
0:00:38.5]} 40... Rf7 {[%clk 0:00:10.5]} 41. Rc1 {[%clk 0:00:37]} 41... Bd7
{[%clk 0:00:10.1]} 42. Bg4 {[%clk 0:00:29]} 42... Be8 {[%clk 0:00:08.1]} 43. b4
{[%clk 0:00:28]} 43... Nxa4 {[%clk 0:00:07.3]} 44. Be6 {[%clk 0:00:25.9]} 44...
g5 {[%clk 0:00:08.2]} 45. Rc8 {[%clk 0:00:23.2]} 45... Kf8 {[%clk 0:00:09.1]}
46. Bxf7 {[%clk 0:00:20.3]} 46... Kxf7 {[%clk 0:00:10]} 47. h7 {[%clk
0:00:20.4]} 1-0

[Event "*** Titled Tuesday Blitz"]
[Site "Chess.com"]
[Date "2021.04.06"]
[Round "3"]
[White "SF-96"]
[Black "serena-maria"]
[Result "1-0"]
[WhiteElo "2575"]
[BlackElo "2383"]
[TimeControl "180+1"]
[EndTime "10:28:56 PDT"]
[Termination "SF-96 won by resignation"]

1. Nf3 {[%clk 0:03:00.1]} 1... Nf6 {[%clk 0:02:59.5]} 2. g3 {[%clk 0:03:00.2]}
2... g6 {[%clk 0:02:59.9]} 3. Bg2 {[%clk 0:03:00.5]} 3... Bg7 {[%clk 0:03:00.5]}
4. O-O {[%clk 0:03:01.2]} 4... O-O {[%clk 0:03:01.1]} 5. d4 {[%clk 0:03:01.9]}
5... d5 {[%clk 0:03:01.2]} 6. c4 {[%clk 0:03:00.1]} 6... dxc4 {[%clk 0:03:02.1]}
7. Na3 {[%clk 0:03:00.4]} 7... c3 {[%clk 0:03:02.3]} 8. bxc3 {[%clk 0:03:00.8]}
8... c5 {[%clk 0:03:03.2]} 9. Nc4 {[%clk 0:02:45.5]} 9... Nd5 {[%clk 0:02:55.8]}
10. Bb2 {[%clk 0:02:43.1]} 10... Nb6 {[%clk 0:02:54.7]} 11. Nfe5 {[%clk
0:02:35.2]} 11... Nc6 {[%clk 0:02:49.5]} 12. Nxc6 {[%clk 0:02:29.1]} 12... bxc6
{[%clk 0:02:47.2]} 13. Na5 {[%clk 0:02:26]} 13... Qc7 {[%clk 0:02:30.4]} 14.
dxc5 {[%clk 0:02:06.4]} 14... Nd5 {[%clk 0:02:29.4]} 15. Nxc6 {[%clk 0:02:06.5]}
15... e6 {[%clk 0:01:20.1]} 16. Bxd5 {[%clk 0:02:06.1]} 16... exd5 {[%clk
0:01:19.8]} 17. Nd4 {[%clk 0:02:06.3]} 17... Bh3 {[%clk 0:01:13.5]} 18. Re1
{[%clk 0:02:04.5]} 18... Qxc5 {[%clk 0:01:13.1]} 19. Qd2 {[%clk 0:01:56.7]}
19... Rab8 {[%clk 0:01:11.9]} 20. a4 {[%clk 0:01:51.4]} 20... Rfc8 {[%clk
0:01:04.7]} 21. Rec1 {[%clk 0:01:42.6]} 21... h5 {[%clk 0:01:01.1]} 22. Ba3
{[%clk 0:01:31.5]} 22... Qa5 {[%clk 0:00:59.1]} 23. Bb4 {[%clk 0:01:27.7]} 23...
Qd8 {[%clk 0:00:51.1]} 24. Rab1 {[%clk 0:01:22.1]} 24... h4 {[%clk 0:00:45.2]}
25. Qf4 {[%clk 0:01:19.8]} 25... hxg3 {[%clk 0:00:29.4]} 26. hxg3 {[%clk
0:01:20.7]} 26... a5 {[%clk 0:00:29.2]} 27. Bxa5 {[%clk 0:01:09.9]} 27... Qe8
{[%clk 0:00:07.7]} 28. Rxb8 {[%clk 0:01:08.3]} 28... Rxb8 {[%clk 0:00:08.6]} 29.
Bb4 {[%clk 0:00:58.8]} 29... Be5 {[%clk 0:00:08.1]} 30. Qe3 {[%clk 0:00:54.2]}
30... Bd7 {[%clk 0:00:06]} 31. a5 {[%clk 0:00:51.8]} 31... f6 {[%clk 0:00:03.2]}
32. Nf3 {[%clk 0:00:47]} 32... Qe6 {[%clk 0:00:02]} 33. Rd1 {[%clk 0:00:39.6]}
33... Bc6 {[%clk 0:00:02.3]} 34. Nd4 {[%clk 0:00:38.1]} 34... Qh3 {[%clk
0:00:01]} 35. Nxc6 {[%clk 0:00:37.1]} 35... Re8 {[%clk 0:00:01.3]} 36. Nxe5
{[%clk 0:00:35.1]} 36... Rxe5 {[%clk 0:00:02.2]} 37. Qf3 {[%clk 0:00:34.4]}
37... Rh5 {[%clk 0:00:02.7]} 38. Qg2 {[%clk 0:00:31.3]} 38... Qg4 {[%clk
0:00:02.7]} 39. Rxd5 {[%clk 0:00:29.6]} 39... Qxe2 {[%clk 0:00:02.8]} 40. Rxh5
{[%clk 0:00:28.5]} 40... Qd1+ {[%clk 0:00:03.3]} 41. Qf1 {[%clk 0:00:28.4]}
41... Qxh5 {[%clk 0:00:04.2]} 42. a6 {[%clk 0:00:28.6]} 42... f5 {[%clk
0:00:02.5]} 43. a7 {[%clk 0:00:28.3]} 43... f4 {[%clk 0:00:03.4]} 44. a8=Q+
{[%clk 0:00:28.3]} 44... Kg7 {[%clk 0:00:03.4]} 45. Qb7+ {[%clk 0:00:27.9]} 1-0

[Event "*** Titled Tuesday Blitz"]
[Site "Chess.com"]
[Date "2021.04.06"]
[Round "3"]
[White "pastouche06"]
[Black "thechesscorner64"]
[Result "1-0"]
[WhiteElo "2607"]
[BlackElo "2417"]
[TimeControl "180+1"]
[EndTime "10:28:57 PDT"]
[Termination "pastouche06 won by resignation"]

1. d4 {[%clk 0:03:00.9]} 1... Nf6 {[%clk 0:02:59.1]} 2. c4 {[%clk 0:02:59.5]}
2... e6 {[%clk 0:02:59.1]} 3. Nc3 {[%clk 0:02:59.4]} 3... Bb4 {[%clk 0:02:57.6]}
4. e3 {[%clk 0:02:54.7]} 4... b6 {[%clk 0:02:57.4]} 5. Ne2 {[%clk 0:02:54.6]}
5... Ba6 {[%clk 0:02:57.2]} 6. Ng3 {[%clk 0:02:49.8]} 6... O-O {[%clk
0:02:56.8]} 7. Bd3 {[%clk 0:02:43]} 7... d5 {[%clk 0:02:56.5]} 8. cxd5 {[%clk
0:02:39.1]} 8... Bxd3 {[%clk 0:02:56.2]} 9. Qxd3 {[%clk 0:02:40]} 9... exd5
{[%clk 0:02:55.7]} 10. O-O {[%clk 0:02:39.5]} 10... c5 {[%clk 0:02:54.6]} 11. a3
{[%clk 0:02:33.3]} 11... c4 {[%clk 0:02:50.2]} 12. Qc2 {[%clk 0:02:31.8]} 12...
Bxc3 {[%clk 0:02:50.4]} 13. bxc3 {[%clk 0:02:32.7]} 13... Re8 {[%clk 0:02:47.8]}
14. f3 {[%clk 0:02:32.2]} 14... Nc6 {[%clk 0:02:47.2]} 15. Kh1 {[%clk
0:02:04.5]} 15... Na5 {[%clk 0:02:44.3]} 16. e4 {[%clk 0:02:02.7]} 16... Nb3
{[%clk 0:02:44.4]} 17. Rb1 {[%clk 0:01:57.8]} 17... Nxc1 {[%clk 0:02:44.4]} 18.
Rbxc1 {[%clk 0:01:58.4]} 18... b5 {[%clk 0:02:21]} 19. e5 {[%clk 0:01:56.4]}
19... Nd7 {[%clk 0:02:21.1]} 20. f4 {[%clk 0:01:54.6]} 20... a5 {[%clk 0:02:17]}
21. f5 {[%clk 0:01:52.8]} 21... b4 {[%clk 0:02:13.1]} 22. axb4 {[%clk
0:01:46.1]} 22... axb4 {[%clk 0:02:14]} 23. cxb4 {[%clk 0:01:46.5]} 23... Qb6
{[%clk 0:02:14]} 24. Qf2 {[%clk 0:01:39.7]} 24... Ra3 {[%clk 0:01:51.7]} 25. Nh5
{[%clk 0:01:21]} 25... Qh6 {[%clk 0:01:41.5]} 26. Nf4 {[%clk 0:01:16.3]} 26...
Nb6 {[%clk 0:01:34.6]} 27. e6 {[%clk 0:00:59.3]} 27... fxe6 {[%clk 0:00:56.9]}
28. Nxe6 {[%clk 0:01:00.2]} 28... Qf6 {[%clk 0:00:46.4]} 29. Qf4 {[%clk
0:00:52.9]} 29... Nc8 {[%clk 0:00:28.5]} 30. Rce1 {[%clk 0:00:48.4]} 30... Ne7
{[%clk 0:00:27.1]} 31. Ng5 {[%clk 0:00:34.9]} 31... Raa8 {[%clk 0:00:21.8]} 32.
Re6 {[%clk 0:00:30.3]} 32... Qf8 {[%clk 0:00:20.9]} 33. f6 {[%clk 0:00:22.6]}
33... gxf6 {[%clk 0:00:08.1]} 34. Rxf6 {[%clk 0:00:21.8]} 34... Qg7 {[%clk
0:00:07.3]} 35. Ne6 {[%clk 0:00:21.2]} 35... Ng6 {[%clk 0:00:05.4]} 36. Nxg7
{[%clk 0:00:15.6]} 36... Nxf4 {[%clk 0:00:05.9]} 37. Nxe8 {[%clk 0:00:15.9]}
37... Rxe8 {[%clk 0:00:05.9]} 38. R6xf4 {[%clk 0:00:15.5]} 38... c3 {[%clk
0:00:06.5]} 39. Rc1 {[%clk 0:00:14.9]} 39... c2 {[%clk 0:00:06.6]} 40. Rf2
{[%clk 0:00:14]} 1-0

[Event "*** Titled Tuesday Blitz"]
[Site "Chess.com"]
[Date "2021.04.06"]
[Round "3"]
[White "Oglob71"]
[Black "Vesper2018"]
[Result "1-0"]
[WhiteElo "2389"]
[BlackElo "2548"]
[TimeControl "180+1"]
[EndTime "10:28:57 PDT"]
[Termination "Oglob71 won on time"]

1. d4 {[%clk 0:03:00.9]} 1... Nf6 {[%clk 0:02:59.5]} 2. Nf3 {[%clk 0:03:01.4]}
2... g6 {[%clk 0:02:59.5]} 3. c4 {[%clk 0:03:01.7]} 3... Bg7 {[%clk 0:02:59.7]}
4. Nc3 {[%clk 0:03:02.1]} 4... O-O {[%clk 0:02:58.2]} 5. Bg5 {[%clk 0:03:02.5]}
5... d6 {[%clk 0:02:47.3]} 6. e3 {[%clk 0:03:02]} 6... Nbd7 {[%clk 0:02:37.3]}
7. h3 {[%clk 0:03:01.6]} 7... b6 {[%clk 0:02:36.2]} 8. Qc2 {[%clk 0:03:01]} 8...
Bb7 {[%clk 0:02:36]} 9. Be2 {[%clk 0:03:01.5]} 9... h6 {[%clk 0:02:22.2]} 10.
Bh4 {[%clk 0:03:00.5]} 10... e5 {[%clk 0:02:17.6]} 11. O-O {[%clk 0:02:59.6]}
11... e4 {[%clk 0:02:04.1]} 12. Nd2 {[%clk 0:02:59]} 12... g5 {[%clk 0:02:04.4]}
13. Bg3 {[%clk 0:02:58.9]} 13... Re8 {[%clk 0:02:00.8]} 14. b4 {[%clk
0:02:58.8]} 14... Nf8 {[%clk 0:01:50.5]} 15. Nb3 {[%clk 0:02:58.2]} 15... Ng6
{[%clk 0:01:46.4]} 16. c5 {[%clk 0:02:57.9]} 16... a6 {[%clk 0:01:31.1]} 17.
Rac1 {[%clk 0:02:53.8]} 17... Re7 {[%clk 0:01:28.3]} 18. a4 {[%clk 0:02:52.1]}
18... Bc8 {[%clk 0:01:24.4]} 19. Rfd1 {[%clk 0:02:49.9]} 19... h5 {[%clk
0:01:18.8]} 20. cxd6 {[%clk 0:02:49.6]} 20... cxd6 {[%clk 0:01:18.6]} 21. d5
{[%clk 0:02:44.3]} 21... h4 {[%clk 0:01:07.7]} 22. Bh2 {[%clk 0:02:43.4]} 22...
g4 {[%clk 0:01:07.4]} 23. hxg4 {[%clk 0:02:43.1]} 23... Nxg4 {[%clk 0:01:04.8]}
24. Nd4 {[%clk 0:02:41.3]} 24... Bxd4 {[%clk 0:00:59.1]} 25. Rxd4 {[%clk
0:02:40.4]} 25... Nxh2 {[%clk 0:00:56.1]} 26. Kxh2 {[%clk 0:02:40.3]} 26... f5
{[%clk 0:00:56.1]} 27. Nd1 {[%clk 0:02:32.1]} 27... Ne5 {[%clk 0:00:44.6]} 28.
f4 {[%clk 0:01:56.6]} 28... exf3 {[%clk 0:00:40.6]} 29. Bxf3 {[%clk 0:01:56.5]}
29... Rg7 {[%clk 0:00:38.5]} 30. Qf2 {[%clk 0:01:51.7]} 30... Rg3 {[%clk
0:00:29.2]} 31. Rf4 {[%clk 0:01:44.2]} 31... Qg5 {[%clk 0:00:21.2]} 32. Rc7
{[%clk 0:01:41.9]} 32... Bd7 {[%clk 0:00:17.7]} 33. Be2 {[%clk 0:01:36.7]} 33...
Re8 {[%clk 0:00:15.8]} 34. Rxd7 {[%clk 0:01:31.5]} 34... Nxd7 {[%clk 0:00:15.5]}
35. Rxf5 {[%clk 0:01:28.6]} 35... Qg7 {[%clk 0:00:15.4]} 36. Bf1 {[%clk
0:01:24.5]} 36... Ne5 {[%clk 0:00:14.7]} 37. Qf4 {[%clk 0:01:24.7]} 37... Rg4
{[%clk 0:00:11.3]} 38. Qf2 {[%clk 0:01:15.5]} 38... Rg6 {[%clk 0:00:10.6]} 39.
Kh1 {[%clk 0:01:14]} 39... h3 {[%clk 0:00:10.3]} 40. gxh3 {[%clk 0:01:12.5]}
40... Rg3 {[%clk 0:00:07.6]} 41. Bg2 {[%clk 0:01:11.7]} 41... Nd3 {[%clk
0:00:06.2]} 42. Qf1 {[%clk 0:01:09.8]} 42... Qg6 {[%clk 0:00:03.5]} 43. Rf3
{[%clk 0:01:08.2]} 43... Rxf3 {[%clk 0:00:02.4]} 44. Qxf3 {[%clk 0:01:08.7]}
44... Rf8 {[%clk 0:00:02.9]} 45. Qe2 {[%clk 0:01:02.3]} 45... Ne5 {[%clk
0:00:03.3]} 46. Kh2 {[%clk 0:01:00.4]} 46... Qg5 {[%clk 0:00:03.6]} 47. Nf2
{[%clk 0:00:59.6]} 47... Qh4 {[%clk 0:00:04]} 48. Ne4 {[%clk 0:00:55.9]} 48...
Rf7 {[%clk 0:00:03.8]} 49. Nxd6 {[%clk 0:00:53.3]} 49... Rg7 {[%clk 0:00:03.9]}
50. Ne4 {[%clk 0:00:48.2]} 50... Ng4+ {[%clk 0:00:03.7]} 51. Kg1 {[%clk
0:00:48]} 51... Ne5 {[%clk 0:00:02]} 52. Nd2 {[%clk 0:00:41.8]} 1-0

[Event "*** Titled Tuesday Blitz"]
[Site "Chess.com"]
[Date "2021.04.06"]
[Round "3"]
[White "louis198"]
[Black "gumimis"]
[Result "1-0"]
[WhiteElo "2540"]
[BlackElo "2327"]
[TimeControl "180+1"]
[EndTime "10:29:00 PDT"]
[Termination "louis198 won on time"]

1. d4 {[%clk 0:03:00.9]} 1... Nf6 {[%clk 0:02:57.6]} 2. c4 {[%clk 0:03:01.3]}
2... g6 {[%clk 0:02:57.8]} 3. Nc3 {[%clk 0:03:00.4]} 3... Bg7 {[%clk 0:02:58.3]}
4. e4 {[%clk 0:03:00.7]} 4... O-O {[%clk 0:02:58.4]} 5. Nf3 {[%clk 0:03:00.9]}
5... d6 {[%clk 0:02:58.9]} 6. Be2 {[%clk 0:03:00.5]} 6... Nbd7 {[%clk
0:02:58.5]} 7. O-O {[%clk 0:03:00]} 7... e5 {[%clk 0:02:58.9]} 8. dxe5 {[%clk
0:03:00.3]} 8... Nxe5 {[%clk 0:02:57.9]} 9. Nxe5 {[%clk 0:02:59.3]} 9... dxe5
{[%clk 0:02:58.1]} 10. Qc2 {[%clk 0:03:00.2]} 10... c6 {[%clk 0:02:54]} 11. Be3
{[%clk 0:03:00]} 11... Qc7 {[%clk 0:02:50.5]} 12. Rfd1 {[%clk 0:02:59.6]} 12...
Be6 {[%clk 0:02:41]} 13. Rd2 {[%clk 0:02:53.9]} 13... Rfd8 {[%clk 0:02:35.5]}
14. Rad1 {[%clk 0:02:53.5]} 14... Rxd2 {[%clk 0:02:34.5]} 15. Qxd2 {[%clk
0:02:53.4]} 15... Bf8 {[%clk 0:02:27.8]} 16. Qc1 {[%clk 0:02:35.2]} 16... Rd8
{[%clk 0:02:22]} 17. Rxd8 {[%clk 0:02:30.4]} 17... Qxd8 {[%clk 0:02:21.4]} 18.
Bxa7 {[%clk 0:02:28.8]} 18... b6 {[%clk 0:02:15.7]} 19. Qc2 {[%clk 0:01:55.5]}
19... Bc5 {[%clk 0:01:50.3]} 20. a3 {[%clk 0:01:52.1]} 20... Qd4 {[%clk
0:01:47.4]} 21. Bf1 {[%clk 0:01:43.5]} 21... Bxc4 {[%clk 0:01:44.3]} 22. b4
{[%clk 0:01:35.1]} 22... Bxf1 {[%clk 0:01:34]} 23. Kxf1 {[%clk 0:01:32]} 23...
Qc4+ {[%clk 0:01:29.7]} 24. Kg1 {[%clk 0:01:24.3]} 24... Bd4 {[%clk 0:01:28.8]}
25. a4 {[%clk 0:01:06.2]} 25... Bxc3 {[%clk 0:01:14.3]} 26. Bxb6 {[%clk
0:01:02.5]} 26... Nxe4 {[%clk 0:01:01.5]} 27. a5 {[%clk 0:00:54.8]} 27... Nd2
{[%clk 0:00:58.3]} 28. Qd1 {[%clk 0:00:48.4]} 28... Bxb4 {[%clk 0:00:54.2]} 29.
h3 {[%clk 0:00:46.6]} 29... Kg7 {[%clk 0:00:44.9]} 30. Qa1 {[%clk 0:00:41]}
30... Bc3 {[%clk 0:00:39.9]} 31. Qc1 {[%clk 0:00:40.7]} 31... Nb3 {[%clk
0:00:37.9]} 32. Qe3 {[%clk 0:00:37.1]} 32... f6 {[%clk 0:00:26.2]} 33. a6 {[%clk
0:00:34.4]} 33... Qxa6 {[%clk 0:00:22.7]} 34. Bd8 {[%clk 0:00:34.3]} 34... Bd4
{[%clk 0:00:19.9]} 35. Qf3 {[%clk 0:00:33.5]} 35... c5 {[%clk 0:00:17.4]} 36.
Qd5 {[%clk 0:00:32.4]} 36... Qc8 {[%clk 0:00:10.8]} 37. Be7 {[%clk 0:00:24.9]}
37... c4 {[%clk 0:00:09.1]} 38. Bb4 {[%clk 0:00:22.2]} 38... Nc1 {[%clk
0:00:04.7]} 39. Qd6 {[%clk 0:00:16.5]} 39... Nd3 {[%clk 0:00:03.1]} 40. Qe7+
{[%clk 0:00:16.6]} 40... Kg8 {[%clk 0:00:02]} 41. Bd2 {[%clk 0:00:15.2]} 41...
c3 {[%clk 0:00:01.7]} 42. Bh6 {[%clk 0:00:14.7]} 1-0

[Event "*** Titled Tuesday Blitz"]
[Site "Chess.com"]
[Date "2021.04.06"]
[Round "3"]
[White "NaciSAN"]
[Black "elextranjero00"]
[Result "0-1"]
[WhiteElo "2254"]
[BlackElo "2583"]
[TimeControl "180+1"]
[EndTime "10:29:01 PDT"]
[Termination "elextranjero00 won on time"]

1. e4 {[%clk 0:03:00.9]} 1... e5 {[%clk 0:02:56.4]} 2. Nf3 {[%clk 0:03:01.1]}
2... Nc6 {[%clk 0:02:56.5]} 3. Bb5 {[%clk 0:03:01.6]} 3... a6 {[%clk 0:02:55.8]}
4. Bxc6 {[%clk 0:03:01.9]} 4... dxc6 {[%clk 0:02:55.5]} 5. d4 {[%clk 0:03:02.4]}
5... exd4 {[%clk 0:02:54.6]} 6. Qxd4 {[%clk 0:03:03]} 6... Qxd4 {[%clk
0:02:54.5]} 7. Nxd4 {[%clk 0:03:03.7]} 7... Bd7 {[%clk 0:02:54.6]} 8. Be3 {[%clk
0:03:03.5]} 8... O-O-O {[%clk 0:02:54.1]} 9. Nc3 {[%clk 0:03:04.1]} 9... Ne7
{[%clk 0:02:47.5]} 10. O-O-O {[%clk 0:03:03.8]} 10... Re8 {[%clk 0:02:40.6]} 11.
Rhe1 {[%clk 0:03:00.5]} 11... c5 {[%clk 0:02:31.9]} 12. Nde2 {[%clk 0:02:59.1]}
12... b6 {[%clk 0:02:31.6]} 13. Nf4 {[%clk 0:02:56.7]} 13... Bc6 {[%clk
0:02:22.9]} 14. Nfd5 {[%clk 0:02:55.1]} 14... Nxd5 {[%clk 0:02:15.1]} 15. exd5
{[%clk 0:02:47.3]} 15... Bd7 {[%clk 0:02:14.6]} 16. Bf4 {[%clk 0:02:42.5]} 16...
Bd6 {[%clk 0:01:35.1]} 17. Bxd6 {[%clk 0:02:40]} 17... cxd6 {[%clk 0:01:36]} 18.
Kd2 {[%clk 0:02:16.2]} 18... Kc7 {[%clk 0:01:29]} 19. f4 {[%clk 0:02:00.5]}
19... Bf5 {[%clk 0:01:23.8]} 20. a4 {[%clk 0:01:55.6]} 20... h5 {[%clk
0:01:22.6]} 21. Na2 {[%clk 0:01:10.8]} 21... h4 {[%clk 0:01:14]} 22. c4 {[%clk
0:01:04.7]} 22... Kd7 {[%clk 0:01:11.4]} 23. Nc3 {[%clk 0:00:53.3]} 23... a5
{[%clk 0:00:52]} 24. b3 {[%clk 0:00:38.8]} 24... Rxe1 {[%clk 0:00:50.4]} 25.
Rxe1 {[%clk 0:00:38.7]} 25... Rh6 {[%clk 0:00:47]} 26. Re2 {[%clk 0:00:23.4]}
26... Rh8 {[%clk 0:00:40.6]} 27. Ne4 {[%clk 0:00:20.5]} 27... Re8 {[%clk
0:00:33.9]} 28. Ng5 {[%clk 0:00:15.7]} 28... Rxe2+ {[%clk 0:00:20.9]} 29. Kxe2
{[%clk 0:00:16.6]} 29... Bc2 {[%clk 0:00:21]} 30. Nxf7 {[%clk 0:00:15.8]} 30...
Bxb3 {[%clk 0:00:21]} 31. Nh8 {[%clk 0:00:05.1]} 31... Bxc4+ {[%clk 0:00:18.6]}
32. Ke3 {[%clk 0:00:05.8]} 32... Bxd5 {[%clk 0:00:18.8]} 33. Ng6 {[%clk
0:00:06]} 33... Bxg2 {[%clk 0:00:16.2]} 34. Nxh4 {[%clk 0:00:06.6]} 34... Bc6
{[%clk 0:00:14.5]} 35. Nf5 {[%clk 0:00:06.7]} 35... Bxa4 {[%clk 0:00:07.7]} 36.
Nxg7 {[%clk 0:00:06.6]} 36... Bc2 {[%clk 0:00:07.6]} 37. f5 {[%clk 0:00:05.8]}
37... Ke7 {[%clk 0:00:07.5]} 38. Kf4 {[%clk 0:00:05.8]} 38... a4 {[%clk
0:00:06.8]} 39. Ne6 {[%clk 0:00:05.9]} 39... a3 {[%clk 0:00:07]} 40. Nc7 {[%clk
0:00:06.1]} 40... a2 {[%clk 0:00:07.3]} 41. Nd5+ {[%clk 0:00:06.4]} 41... Kf7
{[%clk 0:00:07.8]} 0-1

[Event "*** Titled Tuesday Blitz"]
[Site "Chess.com"]
[Date "2021.04.06"]
[Round "3"]
[White "GoltsevDmitry2000"]
[Black "Caterpiller35"]
[Result "1-0"]
[WhiteElo "2734"]
[BlackElo "2447"]
[TimeControl "180+1"]
[EndTime "10:29:02 PDT"]
[Termination "GoltsevDmitry2000 won on time"]

1. e4 {[%clk 0:03:00.5]} 1... c5 {[%clk 0:02:59.6]} 2. Nf3 {[%clk 0:03:00.9]}
2... Nc6 {[%clk 0:02:59.2]} 3. d4 {[%clk 0:03:01.8]} 3... cxd4 {[%clk
0:03:00.1]} 4. Nxd4 {[%clk 0:03:02.7]} 4... e5 {[%clk 0:03:01]} 5. Nb5 {[%clk
0:03:02.5]} 5... d6 {[%clk 0:03:00.6]} 6. N1c3 {[%clk 0:03:03]} 6... a6 {[%clk
0:03:00.8]} 7. Na3 {[%clk 0:03:03.5]} 7... b5 {[%clk 0:03:01.7]} 8. Nd5 {[%clk
0:03:04]} 8... Nge7 {[%clk 0:03:02.1]} 9. c4 {[%clk 0:03:02.1]} 9... Nd4 {[%clk
0:03:01.7]} 10. cxb5 {[%clk 0:03:00.6]} 10... Nxd5 {[%clk 0:03:01.6]} 11. exd5
{[%clk 0:03:00.8]} 11... Bd7 {[%clk 0:03:02.5]} 12. bxa6 {[%clk 0:03:00.3]}
12... Qa5+ {[%clk 0:03:02]} 13. Bd2 {[%clk 0:02:59.4]} 13... Qxd5 {[%clk
0:03:02.9]} 14. f3 {[%clk 0:02:54.1]} 14... Be7 {[%clk 0:02:59.5]} 15. Bc4
{[%clk 0:02:52.3]} 15... Bh4+ {[%clk 0:02:54.3]} 16. Kf1 {[%clk 0:02:34.3]}
16... Qc5 {[%clk 0:02:53.8]} 17. Rc1 {[%clk 0:02:33]} 17... O-O {[%clk
0:02:48.6]} 18. Bxf7+ {[%clk 0:02:32]} 18... Rxf7 {[%clk 0:02:49.5]} 19. Rxc5
{[%clk 0:02:31.7]} 19... dxc5 {[%clk 0:02:50.4]} 20. Be1 {[%clk 0:02:29.8]}
20... Bxe1 {[%clk 0:02:34.2]} 21. Qxe1 {[%clk 0:02:30.7]} 21... e4 {[%clk
0:01:47.2]} 22. Qxe4 {[%clk 0:02:26.4]} 22... Re8 {[%clk 0:01:46.8]} 23. a7
{[%clk 0:02:24]} 23... Rxe4 {[%clk 0:01:37]} 24. a8=Q+ {[%clk 0:02:23.6]} 24...
Re8 {[%clk 0:01:37.1]} 25. Qd5 {[%clk 0:02:22.9]} 25... Bc6 {[%clk 0:01:32.1]}
26. Qc4 {[%clk 0:02:20.7]} 26... Nxf3 {[%clk 0:01:08.4]} 27. gxf3 {[%clk
0:02:18.5]} 27... Bxf3 {[%clk 0:01:08.3]} 28. Qxf7+ {[%clk 0:01:56.1]} 28...
Kxf7 {[%clk 0:01:09.2]} 29. Rg1 {[%clk 0:01:56.9]} 29... Re2 {[%clk 0:00:50.3]}
30. Rg3 {[%clk 0:01:50]} 30... Bh5 {[%clk 0:00:48.5]} 31. Rg5 {[%clk 0:01:41]}
31... Rxh2 {[%clk 0:00:45.5]} 32. Rxc5 {[%clk 0:01:40.3]} 32... Bg6 {[%clk
0:00:34.4]} 33. Rc7+ {[%clk 0:01:35.9]} 33... Kf6 {[%clk 0:00:34]} 34. Rb7
{[%clk 0:01:36.8]} 34... h5 {[%clk 0:00:29.1]} 35. Kg1 {[%clk 0:01:35.8]} 35...
Re2 {[%clk 0:00:23.1]} 36. Nc4 {[%clk 0:01:33.5]} 36... h4 {[%clk 0:00:21.5]}
37. Rb3 {[%clk 0:01:30.9]} 37... Bf7 {[%clk 0:00:15.9]} 38. Rf3+ {[%clk
0:01:28.4]} 38... Ke7 {[%clk 0:00:12.9]} 39. Ne3 {[%clk 0:01:20.4]} 39... Rxb2
{[%clk 0:00:09.1]} 40. Nf5+ {[%clk 0:01:20.5]} 40... Kf6 {[%clk 0:00:06.3]} 41.
Nd6+ {[%clk 0:01:19]} 41... Ke5 {[%clk 0:00:05]} 42. Nxf7+ {[%clk 0:01:18.9]}
42... Ke4 {[%clk 0:00:04.8]} 43. Ng5+ {[%clk 0:01:19.4]} 43... Ke5 {[%clk
0:00:04.4]} 44. a3 {[%clk 0:01:19.9]} 44... g6 {[%clk 0:00:03.8]} 45. Kh1 {[%clk
0:01:19.5]} 45... Ra2 {[%clk 0:00:04]} 46. Nh3 {[%clk 0:01:13.8]} 46... Ke4
{[%clk 0:00:03.6]} 47. Ng1 {[%clk 0:01:14.2]} 47... g5 {[%clk 0:00:03.5]} 48.
Rb3 {[%clk 0:01:13.9]} 48... g4 {[%clk 0:00:03.5]} 49. Rb4+ {[%clk 0:01:14.3]}
49... Kf5 {[%clk 0:00:03.8]} 50. a4 {[%clk 0:01:14.7]} 50... h3 {[%clk
0:00:02.8]} 51. Rc4 {[%clk 0:01:04.6]} 51... Ra1 {[%clk 0:00:02.6]} 52. Kh2
{[%clk 0:01:04.2]} 52... Ra2+ {[%clk 0:00:02.1]} 53. Kh1 {[%clk 0:01:04.5]}
53... Ra1 {[%clk 0:00:02.2]} 54. Rc3 {[%clk 0:01:03.4]} 54... Kf4 {[%clk
0:00:02.1]} 55. Rc4+ {[%clk 0:01:00.4]} 55... Kg3 {[%clk 0:00:01.8]} 56. Rc2
{[%clk 0:01:00.8]} 1-0